fUSD/lending_fUSD_20250105
["ID","MTS","AMOUNT","RATE_DAILY","PERIOD"]
[347768742,1736097049757,-500.0,9.138e-05,2]
[347768743,1736097049767,-500.0,9.138e-05,2]
[347768744,1736097049777,-947.45,9.138e-05,2]
[347768745,1736097049787,-500.0,9.138e-05,2]
[347768746,1736097049797,-500.0,9.138e-05,2]
[347768747,1736097049808,-500.0,9.138e-05,2]
[347768748,1736097049818,-500.0,9.138e-05,2]
[347768749,1736097049828,-224.53,9.138e-05,2]
[347768750,1736097049838,-224.93709319,9.138e-05,2]
[347768751,1736097049848,-500.0,9.138e-05,2]
[347768752,1736097049858,-654.0,9.138e-05,2]
[347768753,1736097049868,-500.0,9.138e-05,2]
[347768754,1736097049878,-500.0,9.138e-05,2]
[347768755,1736097049887,-500.0,9.138e-05,2]
[347768756,1736097049897,-500.0,9.138e-05,2]
[347768757,1736097049906,-500.0,9.138e-05,2]
[347768758,1736097049916,-500.0,9.138e-05,2]
[347768759,1736097049926,-500.0,9.138e-05,2]
[347768760,1736097049935,-528.09,9.138e-05,2]
[347768761,1736097049945,-500.0,9.138e-05,2]
[347768762,1736097049955,-500.0,9.138e-05,2]
[347768763,1736097049965,-500.0,9.138e-05,2]
[347768764,1736097049975,-500.0,9.138e-05,2]
[347768765,1736097049984,-508.9856423,9.138e-05,2]
[347768766,1736097049993,-500.0,9.138e-05,2]
[347768767,1736097050059,-500.0,9.138e-05,2]
[347768768,1736097050069,-500.0,9.138e-05,2]
[347768769,1736097050078,-347.96,9.138e-05,2]
[347768770,1736097050088,-500.0,9.138e-05,2]
[347768771,1736097050098,-500.0,9.138e-05,2]
[347768772,1736097050108,-500.0,9.138e-05,2]
[347768773,1736097050118,-500.0,9.138e-05,2]
[347768774,1736097050128,-500.0,9.138e-05,2]
[347768775,1736097050138,-405.09,9.138e-05,2]
[347768776,1736097050148,-195.67,9.138e-05,2]
[347768777,1736097050157,-1098.73,9.138e-05,2]
[347768778,1736097050167,-500.0,9.138e-05,2]
[347768779,1736097050177,-500.0,9.138e-05,2]
[347768780,1736097050187,-500.0,9.138e-05,2]
[347768781,1736097050197,-500.0,9.138e-05,2]
[347768782,1736097050206,-500.0,9.138e-05,2]
[347768783,1736097050216,-560.86,9.138e-05,2]
[347768784,1736097050225,-500.0,9.138e-05,2]
[347768785,1736097050235,-500.0,9.138e-05,2]
[347768786,1736097050245,-266.56,9.138e-05,2]
[347768787,1736097050255,-500.0,9.138e-05,2]
[347768788,1736097050264,-500.0,9.138e-05,2]
[347768789,1736097050273,-500.0,9.138e-05,2]
[347768790,1736097050283,-200.0,9.156e-05,2]
[347768791,1736097050293,-1000.0,9.247e-05,2]
[347768792,1736097050303,-1680.12,9.31e-05,2]
[347768793,1736097050312,-766.138512,9.31e-05,2]
[347768794,1736097050322,-704.48,9.31e-05,2]
[347768795,1736097050332,-587.805649,9.31e-05,2]
[347768796,1736097050342,-500.0,9.31e-05,2]
[347768797,1736097050351,-500.0,9.31e-05,2]
[347768798,1736097050360,-388.0,9.31e-05,2]
[347768799,1736097050370,-1780.51,9.31e-05,2]
[347768800,1736097050379,-961.56,9.31e-05,2]
[347768801,1736097050389,-905.19,9.31e-05,2]
[347768802,1736097050399,-891.51,9.31e-05,2]
[347768803,1736097050409,-500.0,9.31e-05,2]
[347768804,1736097050419,-1030.69,9.31e-05,2]
[347768805,1736097050429,-1399.36,9.31e-05,2]
[347768806,1736097050439,-155.612781,9.31e-05,2]
[347768807,1736097050449,-594.48,9.31e-05,2]
[347768808,1736097050460,-832.4,9.31e-05,2]
[347768809,1736097050470,-553.05,9.311e-05,2]
[347768810,1736097050479,-500.0,9.311e-05,2]
[347768811,1736097050489,-500.0,9.311e-05,2]
[347768812,1736097050498,-558.34,9.311e-05,2]
[347768813,1736097050508,-500.0,9.311e-05,2]
[347768814,1736097050518,-500.0,9.311e-05,2]
[347768815,1736097050527,-500.0,9.311e-05,2]
[347768816,1736097050537,-500.0,9.311e-05,2]
[347768817,1736097050546,-500.0,9.311e-05,2]
[347768818,1736097050557,-500.0,9.311e-05,2]
[347768819,1736097050567,-500.0,9.311e-05,2]
[347768820,1736097050578,-500.0,9.311e-05,2]
[347768821,1736097050587,-500.0,9.311e-05,2]
[347768822,1736097050596,-500.0,9.311e-05,2]
[347768823,1736097050606,-500.0,9.311e-05,2]
[347768824,1736097050615,-500.0,9.311e-05,2]
[347768825,1736097050625,-500.0,9.311e-05,2]
[347768826,1736097050635,-500.0,9.311e-05,2]
[347768827,1736097050644,-500.0,9.311e-05,2]
[347768828,1736097050653,-500.0,9.311e-05,2]
[347768829,1736097050663,-700.88,9.311e-05,2]
[347768830,1736097050672,-556.79,9.311e-05,2]
[347768831,1736097050682,-500.0,9.311e-05,2]
[347768832,1736097050693,-500.0,9.311e-05,2]
[347768833,1736097050701,-581.87,9.311e-05,2]
[347768834,1736097050711,-500.0,9.311e-05,2]
[347768835,1736097050721,-500.0,9.311e-05,2]
[347768836,1736097050731,-500.0,9.311e-05,2]
[347768837,1736097050741,-500.0,9.311e-05,2]
[347768838,1736097050751,-500.0,9.311e-05,2]
[347768839,1736097050761,-601.32,9.311e-05,2]
[347768840,1736097050770,-571.88,9.311e-05,2]
[347768841,1736097050780,-664.87,9.311e-05,2]
[347768842,1736097050789,-536.69,9.311e-05,2]
[347768843,1736097050798,-500.0,9.311e-05,2]
[347768844,1736097050808,-500.0,9.311e-05,2]
[347768845,1736097050818,-500.0,9.311e-05,2]
[347768846,1736097050827,-500.0,9.311e-05,2]
[347768847,1736097050837,-500.0,9.311e-05,2]
[347768848,1736097050846,-500.0,9.311e-05,2]
[347768849,1736097050856,-500.0,9.311e-05,2]
[347768850,1736097050865,-500.0,9.311e-05,2]
[347768851,1736097050875,-500.0,9.311e-05,2]
[347768852,1736097050885,-500.0,9.311e-05,2]
[347768853,1736097050894,-578.14,9.311e-05,2]
[347768854,1736097050904,-500.0,9.311e-05,2]
[347768855,1736097050913,-500.0,9.311e-05,2]
[347768856,1736097050923,-633.35,9.311e-05,2]
[347768857,1736097050932,-505.88,9.311e-05,2]
[347768858,1736097050942,-578.17,9.311e-05,2]
[347768859,1736097050951,-500.0,9.311e-05,2]
[347768860,1736097050961,-500.0,9.311e-05,2]
[347768861,1736097050971,-700.08,9.311e-05,2]
[347768862,1736097050980,-500.0,9.311e-05,2]
[347768863,1736097050990,-500.0,9.311e-05,2]
[347768864,1736097050999,-500.0,9.311e-05,2]
[347768865,1736097051008,-500.0,9.311e-05,2]
[347768866,1736097051018,-794.97,9.311e-05,2]
[347768867,1736097051027,-500.0,9.311e-05,2]
[347768868,1736097051037,-500.0,9.311e-05,2]
[347768869,1736097051046,-627.67,9.311e-05,2]
[347768870,1736097051057,-599.09,9.311e-05,2]
[347768871,1736097051066,-500.0,9.311e-05,2]
[347768872,1736097051076,-500.0,9.311e-05,2]
[347768873,1736097051085,-500.0,9.311e-05,2]
[347768874,1736097051095,-500.0,9.311e-05,2]
[347768875,1736097051104,-762.48,9.311e-05,2]
[347768876,1736097051114,-259.39,9.311e-05,2]
[347768877,1736097051124,-508.75,9.311e-05,2]
[347768878,1736097051134,-500.0,9.311e-05,2]
[347768879,1736097051143,-555.83,9.312e-05,2]
[347768880,1736097051152,-441.96,9.312e-05,2]
[347768881,1736097051162,-500.0,9.312e-05,2]
[347768882,1736097051172,-1755.58,9.312e-05,2]
[347768883,1736097051182,-500.0,9.312e-05,2]
[347768884,1736097051191,-638.89,9.312e-05,2]
[347768885,1736097051201,-2164.95,9.312e-05,2]
[347768886,1736097051211,-500.0,9.312e-05,2]
[347768887,1736097051221,-1234.8,9.312e-05,2]
[347768888,1736097051231,-500.0,9.312e-05,2]
[347768889,1736097051238,-500.0,9.312e-05,2]
[347768890,1736097051247,-500.0,9.312e-05,2]
[347768891,1736097051256,-500.0,9.312e-05,2]
[347768892,1736097051266,-287.89,9.312e-05,2]
[347768893,1736097051275,-756.66,9.312e-05,2]
[347768894,1736097051285,-500.0,9.312e-05,2]
[347768895,1736097051294,-1099.05,9.312e-05,2]
[347768896,1736097051306,-500.0,9.312e-05,2]
[347768897,1736097051315,-500.0,9.312e-05,2]
[347768898,1736097051325,-500.0,9.312e-05,2]
[347768899,1736097051335,-500.0,9.312e-05,2]
[347768900,1736097051344,-993.51,9.312e-05,2]
[347768901,1736097051353,-500.0,9.312e-05,2]
[347768902,1736097051363,-500.0,9.312e-05,2]
[347768903,1736097051373,-928.38,9.312e-05,2]
[347768904,1736097051383,-651.19,9.312e-05,2]
[347768905,1736097051393,-1569.04,9.312e-05,2]
[347768906,1736097051403,-1414.11,9.312e-05,2]
[347768907,1736097051413,-1755.76,9.312e-05,2]
[347768908,1736097051422,-553.42,9.312e-05,2]
[347768909,1736097051432,-1658.3,9.312e-05,2]
[347768910,1736097051443,-882.25,9.312e-05,2]
[347768911,1736097051453,-1011.32,9.312e-05,2]
[347768912,1736097051463,-500.0,9.312e-05,2]
[347768913,1736097051472,-1576.63,9.312e-05,2]
[347768914,1736097051482,-961.74,9.314e-05,2]
[347768915,1736097051492,-2872.77,9.314e-05,2]
[347768916,1736097051501,-757.54,9.314e-05,2]
[347768917,1736097051510,-500.0,9.314e-05,2]
[347768918,1736097051520,-1689.38,9.314e-05,2]
[347768919,1736097051529,-582.28,9.314e-05,2]
[347768920,1736097051539,-500.0,9.314e-05,2]
[347768921,1736097051548,-500.0,9.314e-05,2]
[347768922,1736097051560,-811.88,9.314e-05,2]
[347768923,1736097051569,-500.0,9.314e-05,2]
[347768924,1736097051579,-1525.05,9.314e-05,2]
[347768925,1736097051589,-758.87,9.314e-05,2]
[347768926,1736097051599,-684.2,9.314e-05,2]
[347768927,1736097051609,-976.33,9.314e-05,2]
[347768928,1736097051619,-1024.5,9.314e-05,2]
[347768929,1736097051629,-500.0,9.314e-05,2]
[347768930,1736097051639,-897.75,9.314e-05,2]
[347768931,1736097051648,-2270.81,9.314e-05,2]
[347768932,1736097051658,-500.0,9.314e-05,2]
[347768933,1736097051667,-750.4,9.314e-05,2]
[347768934,1736097051677,-742.21,9.314e-05,2]
[347768935,1736097051687,-1133.82,9.314e-05,2]
[347768936,1736097051697,-500.0,9.314e-05,2]
[347768937,1736097051707,-500.0,9.314e-05,2]
[347768938,1736097051716,-353.2,9.314e-05,2]
[347768939,1736097051727,-1649.11,9.314e-05,2]
[347768940,1736097051737,-597.17619743,9.314e-05,2]
[347768941,1736097051746,-623.15,9.314e-05,2]
[347768942,1736097051755,-500.0,9.314e-05,2]
[347768943,1736097051764,-944.44,9.314e-05,2]
[347768944,1736097051773,-500.0,9.314e-05,2]
[347768945,1736097051783,-500.0,9.314e-05,2]
[347768946,1736097051793,-916.71,9.314e-05,2]
[347768947,1736097051804,-1132.59,9.314e-05,2]
[347768948,1736097051813,-1292.44,9.314e-05,2]
[347768949,1736097051822,-500.0,9.314e-05,2]
[347768950,1736097051832,-552.81,9.314e-05,2]
[347768951,1736097051842,-866.28,9.314e-05,2]
[347768952,1736097051851,-500.0,9.314e-05,2]
[347768953,1736097051861,-1620.35,9.314e-05,2]
[347768954,1736097051870,-500.0,9.314e-05,2]
[347768955,1736097051879,-1543.6,9.314e-05,2]
[347768956,1736097051888,-500.0,9.314e-05,2]
[347768957,1736097051897,-998.68,9.314e-05,2]
[347768958,1736097051906,-728.39,9.314e-05,2]
[347768959,1736097051917,-500.0,9.314e-05,2]
[347768960,1736097051927,-500.0,9.314e-05,2]
[347768961,1736097051936,-932.16,9.315e-05,2]
[347768962,1736097051946,-2115.73,9.315e-05,2]
[347768963,1736097051955,-500.0,9.315e-05,2]
[347768964,1736097051965,-698.78,9.315e-05,2]
[347768965,1736097051975,-1025.34,9.315e-05,2]
[347768966,1736097051984,-1102.24,9.315e-05,2]
[347768967,1736097051994,-1679.0,9.315e-05,2]
[347768968,1736097052003,-1000.0,9.315e-05,2]
[347768969,1736097052013,-602.76,9.315e-05,2]
[347768970,1736097052022,-664.85,9.315e-05,2]
[347768971,1736097052031,-2237.39,9.315e-05,2]
[347768972,1736097052042,-1629.25,9.315e-05,2]
[347768973,1736097052054,-1920.27,9.315e-05,2]
[347768974,1736097052064,-5221.52,9.315e-05,2]
[347768975,1736097052074,-807.93,9.315e-05,2]
[347768976,1736097052083,-500.0,9.315e-05,2]
[347768977,1736097052092,-158.94019876,9.336e-05,2]
[347768978,1736097052101,-15027.61290956,9.338e-05,2]
[347768979,1736097052110,-500.0,9.353e-05,2]
[347768980,1736097052120,-500.0,9.412e-05,2]
[347768981,1736097052130,-608.97,9.412e-05,2]
[347768982,1736097052139,-500.0,9.412e-05,2]
[347768983,1736097052149,-500.0,9.412e-05,2]
[347768984,1736097052159,-500.0,9.412e-05,2]
[347768985,1736097052168,-500.0,9.412e-05,2]
[347768986,1736097052177,-500.0,9.412e-05,2]
[347768987,1736097052187,-500.0,9.412e-05,2]
[347768988,1736097052196,-644.74,9.412e-05,2]
[347768989,1736097052206,-500.0,9.412e-05,2]
[347768990,1736097052215,-500.0,9.412e-05,2]
[347768991,1736097052225,-500.0,9.412e-05,2]
[347768992,1736097052235,-500.0,9.412e-05,2]
[347768993,1736097052254,-500.0,9.412e-05,2]
[347768994,1736097052265,-500.0,9.412e-05,2]
[347768995,1736097052275,-485.03957143,9.412e-05,2]
[347768996,1736097052284,-500.0,9.412e-05,2]
[347768997,1736097052294,-500.0,9.412e-05,2]
[347768998,1736097052304,-500.0,9.412e-05,2]
[347768999,1736097052314,-500.0,9.412e-05,2]
[347769000,1736097052323,-500.0,9.412e-05,2]
[347769001,1736097052333,-500.0,9.412e-05,2]
[347769002,1736097052343,-511.59,9.412e-05,2]
[347769003,1736097052352,-500.0,9.412e-05,2]
[347769004,1736097052362,-500.0,9.412e-05,2]
[347769005,1736097052375,-500.0,9.412e-05,2]
[347769006,1736097052386,-731.72,9.412e-05,2]
[347769007,1736097052396,-500.0,9.412e-05,2]
[347769008,1736097052406,-276.11757059,9.412e-05,2]
[347769009,1736097052416,-500.0,9.412e-05,2]
[347769010,1736097052426,-242.16733832,9.412e-05,2]
[347769011,1736097052435,-500.0,9.412e-05,2]
[347769012,1736097052446,-500.0,9.412e-05,2]
[347769013,1736097052455,-500.0,9.412e-05,2]
[347769014,1736097052466,-500.0,9.412e-05,2]
[347769015,1736097052476,-221.61,9.412e-05,2]
[347769016,1736097052486,-500.0,9.412e-05,2]
[347769017,1736097052496,-585.46,9.412e-05,2]
[347769018,1736097052506,-500.0,9.412e-05,2]
[347769019,1736097052516,-500.0,9.412e-05,2]
[347769020,1736097052527,-523.24,9.412e-05,2]
[347769021,1736097052536,-500.0,9.412e-05,2]
[347769022,1736097052545,-500.0,9.412e-05,2]
[347769023,1736097052555,-500.0,9.412e-05,2]
[347769024,1736097052565,-500.0,9.412e-05,2]
[347769025,1736097052575,-500.0,9.412e-05,2]
[347769026,1736097052585,-500.0,9.412e-05,2]
[347769027,1736097052596,-500.0,9.412e-05,2]
[347769028,1736097052605,-500.0,9.412e-05,2]
[347769029,1736097052615,-500.0,9.412e-05,2]
[347769030,1736097052625,-500.0,9.412e-05,2]
[347769031,1736097052634,-500.0,9.412e-05,2]
[347769032,1736097052643,-500.0,9.412e-05,2]
[347769033,1736097052653,-589.25,9.412e-05,2]
[347769034,1736097052663,-500.0,9.412e-05,2]
[347769035,1736097052673,-500.0,9.412e-05,2]
[347769036,1736097052682,-619.97,9.412e-05,2]
[347769037,1736097052692,-283.21,9.412e-05,2]
[347769038,1736097052702,-341.66,9.412e-05,2]
[347769039,1736097052712,-500.0,9.412e-05,2]
[347769040,1736097052721,-500.0,9.412e-05,2]
[347769041,1736097052731,-500.0,9.412e-05,2]
[347769042,1736097052741,-500.0,9.412e-05,2]
[347769043,1736097052751,-500.0,9.412e-05,2]
[347769044,1736097052760,-500.0,9.412e-05,2]
[347769045,1736097052770,-500.0,9.412e-05,2]
[347769046,1736097052779,-500.0,9.412e-05,2]
[347769047,1736097052789,-500.0,9.412e-05,2]
[347769048,1736097052798,-500.0,9.412e-05,2]
[347769049,1736097052809,-500.0,9.412e-05,2]
[347769050,1736097052819,-839.47,9.412e-05,2]
[347769051,1736097052829,-615.67883907,9.412e-05,2]
[347769052,1736097052839,-500.0,9.412e-05,2]
[347769053,1736097052848,-1901.86,9.412e-05,2]
[347769054,1736097052858,-500.0,9.412e-05,2]
[347769055,1736097052867,-1121.33,9.412e-05,2]
[347769056,1736097052877,-500.0,9.412e-05,2]
[347769057,1736097052887,-500.0,9.412e-05,2]
[347769058,1736097052897,-500.0,9.412e-05,2]
[347769059,1736097052906,-500.0,9.412e-05,2]
[347769060,1736097052915,-607.28,9.412e-05,2]
[347769061,1736097052925,-500.0,9.412e-05,2]
[347769062,1736097052934,-407.21,9.412e-05,2]
[347769063,1736097052944,-500.0,9.412e-05,2]
[347769064,1736097052953,-500.0,9.412e-05,2]
[347769065,1736097052963,-500.0,9.412e-05,2]
[347769066,1736097052973,-500.0,9.412e-05,2]
[347769067,1736097052982,-500.0,9.412e-05,2]
[347769068,1736097052991,-2372.38,9.412e-05,2]
[347769069,1736097053001,-500.0,9.412e-05,2]
[347769070,1736097053011,-500.0,9.412e-05,2]
[347769071,1736097053020,-500.0,9.412e-05,2]
[347769072,1736097053030,-394.82,9.412e-05,2]
[347769073,1736097053039,-652.09,9.412e-05,2]
[347769074,1736097053049,-500.0,9.412e-05,2]
[347769075,1736097053059,-500.0,9.412e-05,2]
[347769076,1736097053070,-500.0,9.412e-05,2]
[347769077,1736097053080,-500.0,9.412e-05,2]
[347769078,1736097053091,-500.0,9.412e-05,2]
[347769079,1736097053102,-500.0,9.412e-05,2]
[347769080,1736097053113,-947.45,9.412e-05,2]
[347769081,1736097053124,-500.0,9.412e-05,2]
[347769082,1736097053134,-500.0,9.412e-05,2]
[347769083,1736097053144,-500.0,9.412e-05,2]
[347769084,1736097053155,-500.0,9.412e-05,2]
[347769085,1736097053165,-500.0,9.412e-05,2]
[347769086,1736097053176,-654.0,9.412e-05,2]
[347769087,1736097053186,-500.0,9.412e-05,2]
[347769088,1736097053196,-567.53672186,9.412e-05,2]
[347769089,1736097053206,-500.0,9.412e-05,2]
[347769090,1736097053217,-500.0,9.412e-05,2]
[347769091,1736097053228,-500.0,9.412e-05,2]
[347769092,1736097053238,-500.0,9.412e-05,2]
[347769093,1736097053248,-500.0,9.412e-05,2]
[347769094,1736097053258,-528.09,9.412e-05,2]
[347769095,1736097053269,-500.0,9.412e-05,2]
[347769096,1736097053279,-500.0,9.412e-05,2]
[347769097,1736097053290,-500.0,9.412e-05,2]
[347769098,1736097053300,-500.0,9.412e-05,2]
[347769099,1736097053311,-632.00105594,9.412e-05,2]
[347769100,1736097053321,-500.0,9.412e-05,2]
[347769101,1736097053333,-217.75,9.412e-05,2]
[347769102,1736097053344,-500.0,9.412e-05,2]
[347769103,1736097053354,-500.0,9.412e-05,2]
[347769104,1736097053365,-500.0,9.412e-05,2]
[347769105,1736097053379,-500.0,9.412e-05,2]
[347769106,1736097053389,-500.0,9.412e-05,2]
[347769107,1736097053399,-1098.73,9.412e-05,2]
[347769108,1736097053410,-500.0,9.412e-05,2]
[347769109,1736097053420,-500.0,9.412e-05,2]
[347769110,1736097053430,-500.0,9.412e-05,2]
[347769111,1736097053440,-500.0,9.412e-05,2]
[347769112,1736097053450,-500.0,9.412e-05,2]
[347769113,1736097053460,-560.86,9.412e-05,2]
[347769114,1736097053471,-500.0,9.412e-05,2]
[347769115,1736097053481,-500.0,9.412e-05,2]
[347769116,1736097053491,-500.0,9.412e-05,2]
[347769117,1736097053501,-500.0,9.412e-05,2]
[347769118,1736097053511,-160.51244217,9.421e-05,2]
[347769119,1736097053521,-180.1149,9.485e-05,2]
[347769120,1736097053531,-19153.1068,9.485e-05,2]
[347769121,1736097053541,-1680.12,9.584e-05,2]
[347769122,1736097053551,-766.138512,9.584e-05,2]
[347769123,1736097053562,-704.48,9.584e-05,2]
[347769124,1736097053571,-587.805649,9.584e-05,2]
[347769125,1736097053581,-500.0,9.584e-05,2]
[347769126,1736097053591,-500.0,9.584e-05,2]
[347769127,1736097053601,-1780.51,9.584e-05,2]
[347769128,1736097053612,-961.56,9.584e-05,2]
[347769129,1736097053621,-905.19,9.584e-05,2]
[347769130,1736097053631,-891.51,9.584e-05,2]
[347769131,1736097053642,-500.0,9.584e-05,2]
[347769132,1736097053652,-152.483735,9.584e-05,2]
[347769133,1736097053663,-1030.69,9.584e-05,2]
[347769134,1736097053673,-1399.36,9.584e-05,2]
[347769135,1736097053683,-155.612781,9.584e-05,2]
[347769136,1736097053694,-594.48,9.584e-05,2]
[347769137,1736097053705,-832.4,9.584e-05,2]
[347769138,1736097053715,-553.05,9.585e-05,2]
[347769139,1736097053726,-452.63,9.585e-05,2]
[347769140,1736097053735,-500.0,9.585e-05,2]
[347769141,1736097053745,-558.34,9.585e-05,2]
[347769142,1736097053755,-500.0,9.585e-05,2]
[347769143,1736097053765,-500.0,9.585e-05,2]
[347769144,1736097053776,-296.83,9.585e-05,2]
[347769145,1736097053786,-500.0,9.585e-05,2]
[347769146,1736097053796,-500.0,9.585e-05,2]
[347769147,1736097053806,-500.0,9.585e-05,2]
[347769148,1736097053817,-500.0,9.585e-05,2]
[347769149,1736097053828,-500.0,9.585e-05,2]
[347769150,1736097053838,-500.0,9.585e-05,2]
[347769151,1736097053848,-500.0,9.585e-05,2]
[347769152,1736097053859,-500.0,9.585e-05,2]
[347769153,1736097053869,-500.0,9.585e-05,2]
[347769154,1736097053878,-500.0,9.585e-05,2]
[347769155,1736097053888,-500.0,9.585e-05,2]
[347769156,1736097053898,-500.0,9.585e-05,2]
[347769157,1736097053908,-500.0,9.585e-05,2]
[347769158,1736097053918,-700.88,9.585e-05,2]
[347769159,1736097053929,-556.79,9.585e-05,2]
[347769160,1736097053939,-500.0,9.585e-05,2]
[347769161,1736097053949,-500.0,9.585e-05,2]
[347769162,1736097053959,-500.0,9.585e-05,2]
[347769163,1736097053969,-500.0,9.585e-05,2]
[347769164,1736097053979,-500.0,9.585e-05,2]
[347769165,1736097053989,-500.0,9.585e-05,2]
[347769166,1736097053999,-500.0,9.585e-05,2]
[347769167,1736097054009,-601.32,9.585e-05,2]
[347769168,1736097054019,-571.88,9.585e-05,2]
[347769169,1736097054030,-664.87,9.585e-05,2]
[347769170,1736097054040,-536.69,9.585e-05,2]
[347769171,1736097054050,-500.0,9.585e-05,2]
[347769172,1736097054061,-224.08301506,9.585e-05,2]
[347769173,1736097054071,-500.0,9.585e-05,2]
[347769174,1736097054081,-500.0,9.585e-05,2]
[347769175,1736097054091,-500.0,9.585e-05,2]
[347769176,1736097054102,-500.0,9.585e-05,2]
[347769177,1736097054112,-500.0,9.585e-05,2]
[347769178,1736097054123,-500.0,9.585e-05,2]
[347769179,1736097054134,-500.0,9.585e-05,2]
[347769180,1736097054143,-500.0,9.585e-05,2]
[347769181,1736097054154,-578.14,9.585e-05,2]
[347769182,1736097054164,-500.0,9.585e-05,2]
[347769183,1736097054175,-500.0,9.585e-05,2]
[347769184,1736097054186,-633.35,9.585e-05,2]
[347769185,1736097054196,-578.17,9.585e-05,2]
[347769186,1736097054207,-500.0,9.585e-05,2]
[347769187,1736097054218,-500.0,9.585e-05,2]
[347769188,1736097054228,-700.08,9.585e-05,2]
[347769189,1736097054239,-500.0,9.585e-05,2]
[347769190,1736097054249,-500.0,9.585e-05,2]
[347769191,1736097054259,-500.0,9.585e-05,2]
[347769192,1736097054269,-229.39,9.585e-05,2]
[347769193,1736097054279,-794.97,9.585e-05,2]
[347769194,1736097054290,-500.0,9.585e-05,2]
[347769195,1736097054301,-500.0,9.585e-05,2]
[347769196,1736097054312,-599.09,9.585e-05,2]
[347769197,1736097054322,-212.65,9.585e-05,2]
[347769198,1736097054334,-500.0,9.585e-05,2]
[347769199,1736097054344,-500.0,9.585e-05,2]
[347769200,1736097054354,-762.48,9.585e-05,2]
[347769201,1736097054364,-508.75,9.585e-05,2]
[347769202,1736097054377,-500.0,9.585e-05,2]
[347769203,1736097054387,-1755.58,9.586e-05,2]
[347769204,1736097054398,-500.0,9.586e-05,2]
[347769205,1736097054408,-638.89,9.586e-05,2]
[347769206,1736097054418,-500.0,9.586e-05,2]
[347769207,1736097054429,-2164.95,9.586e-05,2]
[347769208,1736097054439,-1234.8,9.586e-05,2]
[347769209,1736097054449,-464.71327887,9.586e-05,2]
[347769210,1736097054460,-500.0,9.586e-05,2]
[347769211,1736097054469,-500.0,9.586e-05,2]
[347769212,1736097054479,-500.0,9.586e-05,2]
[347769213,1736097054491,-756.66,9.586e-05,2]
[347769214,1736097054501,-500.0,9.586e-05,2]
[347769215,1736097054510,-1099.05,9.586e-05,2]
[347769216,1736097054520,-500.0,9.586e-05,2]
[347769217,1736097054529,-500.0,9.586e-05,2]
[347769218,1736097054540,-500.0,9.586e-05,2]
[347769219,1736097054550,-500.0,9.586e-05,2]
[347769220,1736097054561,-993.51,9.586e-05,2]
[347769221,1736097054571,-500.0,9.586e-05,2]
[347769222,1736097054581,-500.0,9.586e-05,2]
[347769223,1736097054591,-928.38,9.586e-05,2]
[347769224,1736097054601,-651.19,9.586e-05,2]
[347769225,1736097054611,-1569.04,9.586e-05,2]
[347769226,1736097054621,-1414.11,9.586e-05,2]
[347769227,1736097054631,-1755.76,9.586e-05,2]
[347769228,1736097054641,-553.42,9.586e-05,2]
[347769229,1736097054651,-1658.3,9.586e-05,2]
[347769230,1736097054662,-882.25,9.586e-05,2]
[347769231,1736097054672,-1011.32,9.586e-05,2]
[347769232,1736097054681,-500.0,9.586e-05,2]
[347769233,1736097054691,-1576.63,9.586e-05,2]
[347769234,1736097054700,-961.74,9.588e-05,2]
[347769235,1736097054709,-2872.77,9.588e-05,2]
[347769236,1736097054719,-757.54,9.588e-05,2]
[347769237,1736097054729,-500.0,9.588e-05,2]
[347769238,1736097054739,-1689.38,9.588e-05,2]
[347769239,1736097054749,-582.28,9.588e-05,2]
[347769240,1736097054759,-500.0,9.588e-05,2]
[347769241,1736097054769,-500.0,9.588e-05,2]